bitfinex-derivatives/quotes_BTCF0:USTF0_20250822
["timestamp","ask_amount","ask_price","bid_price","bid_amount"]
[1755826169947,0.17807,112820.0,112810.0,1.65696061]
[1755826172546,0.17807,112820.0,112810.0,1.37681598]
[1755826172743,0.17807,112820.0,112810.0,1.65696061]
[1755826173246,0.45821463,112820.0,112810.0,1.65696061]
[1755826173645,0.45821463,112820.0,112810.0,1.37681598]
[1755826173848,0.45821463,112820.0,112810.0,1.65696061]
[1755826174550,0.45821463,112820.0,112810.0,1.57728488]
[1755826175042,1.09915926,112820.0,112810.0,0.09162488]
[1755826175249,1.09915926,112820.0,112810.0,0.98048488]
[1755826175546,1.09915926,112820.0,112810.0,1.01386488]
[1755826175547,0.73835926,112820.0,112810.0,1.01386488]
[1755826176050,1.09915926,112820.0,112810.0,1.01386488]
[1755826176250,1.09915926,112820.0,112810.0,1.29400951]
[1755826176651,1.09915926,112820.0,112810.0,1.27604926]
[1755826176852,1.09915926,112820.0,112810.0,0.99590463]
[1755826178058,0.53887,112820.0,112810.0,0.99590463]
[1755826178357,1.09915926,112820.0,112810.0,0.06372463]
[1755826178553,0.09736,112810.0,112800.0,1.78651887]
[1755826178856,0.75986463,112810.0,112800.0,2.52218]
[1755826179558,0.75986463,112810.0,112800.0,2.57037]
[1755826179957,0.95476463,112810.0,112800.0,2.53699]
[1755826180457,0.95476463,112810.0,112800.0,2.57037]
[1755826180850,0.67562,112810.0,112800.0,2.57037]
[1755826181050,0.31482,112810.0,112800.0,2.57037]
[1755826181246,0.59696463,112810.0,112800.0,2.85051463]
[1755826181656,0.95776463,112810.0,112800.0,2.85051463]
[1755826182159,0.95776463,112810.0,112800.0,2.57037]
[1755826182458,0.95776463,112810.0,112800.0,2.85051463]
[1755826182860,0.59696463,112810.0,112800.0,2.85051463]
[1755826183254,0.95776463,112810.0,112800.0,2.57037]
[1755826183460,0.95776463,112810.0,112800.0,2.85051463]
[1755826184364,0.59696463,112810.0,112800.0,2.85051463]
[1755826184860,0.55034463,112810.0,112800.0,2.85051463]
[1755826185061,0.59696463,112810.0,112800.0,2.85051463]
[1755826187765,0.59696463,112810.0,112800.0,2.57037]
[1755826187966,0.59696463,112810.0,112800.0,2.85051463]
[1755826190160,0.59696463,112810.0,112800.0,3.21131463]
[1755826190567,0.59696463,112810.0,112800.0,2.93117]
[1755826190766,0.59696463,112810.0,112800.0,3.21131463]
[1755826192369,0.59396463,112810.0,112800.0,3.21331463]
[1755826192572,0.59396463,112810.0,112800.0,2.57237]
[1755826192767,0.59396463,112810.0,112800.0,2.85251463]
[1755826192969,0.59396463,112810.0,112800.0,2.85151463]
[1755826193367,0.31382,112810.0,112800.0,2.85051463]
[1755826193580,0.59396463,112810.0,112800.0,2.85051463]
[1755826193768,0.52260463,112810.0,112800.0,3.49145926]
[1755826193964,0.88401463,112820.0,112810.0,0.08497]
[1755826193965,0.17208,112820.0,112810.0,0.08497]
[1755826194165,0.15708,112820.0,112810.0,1.37486879]
[1755826194360,0.08686,112820.0,112810.0,1.09472416]
[1755826194566,0.08574,112820.0,112810.0,1.17439989]
[1755826194761,0.03898,112840.0,112810.0,1.26306479]
[1755826194966,0.11951,112840.0,112830.0,0.28014463]
[1755826195166,0.11951,112840.0,112830.0,1.09430463]
[1755826195167,0.39965463,112840.0,112830.0,1.09430463]
[1755826195370,0.39965463,112840.0,112830.0,0.81416]
[1755826195671,0.39965463,112840.0,112830.0,1.09430463]
[1755826196076,0.40165463,112840.0,112830.0,1.09430463]
[1755826196266,0.12651,112840.0,112830.0,1.09430741]
[1755826197173,0.12651,112840.0,112830.0,0.81416]
[1755826199066,0.12651,112840.0,112830.0,0.82331125]
[1755826199774,0.40665741,112840.0,112830.0,0.82331125]
[1755826200774,0.37464741,112840.0,112830.0,0.82331125]
[1755826201073,0.07994,112840.0,112830.0,0.82331125]
[1755826201672,0.06394,112840.0,112830.0,0.82331125]
[1755826203876,0.05894,112840.0,112830.0,0.82331125]
[1755826204070,0.06194,112840.0,112830.0,0.82331125]
[1755826205777,0.03912,112840.0,112830.0,0.82331125]
[1755826205977,0.03912,112840.0,112830.0,1.10345866]
[1755826206172,0.03912,112840.0,112830.0,0.82331125]
[1755826206376,0.02942,112840.0,112830.0,0.82331125]
[1755826207077,0.02942,112840.0,112830.0,1.10345866]
[1755826209178,0.02942,112840.0,112830.0,0.82331125]
[1755826209680,0.06194,112840.0,112830.0,0.82331125]
[1755826209874,0.06194,112840.0,112830.0,1.10345866]
[1755826210177,0.10995,112840.0,112830.0,0.82331125]
[1755826210381,0.12451,112840.0,112830.0,0.82331125]
[1755826210974,0.0925,112840.0,112830.0,0.82331125]
[1755826211171,0.0905,112840.0,112830.0,0.82331125]
[1755826211483,0.07694,112840.0,112830.0,0.82331125]
[1755826211786,0.07394,112840.0,112830.0,0.82331125]
[1755826211988,0.07494,112840.0,112830.0,0.82331125]
[1755826212288,0.07594,112840.0,112830.0,0.82331125]
[1755826216185,0.10795,112840.0,112830.0,0.82331125]
[1755826216381,0.38811576,112840.0,112830.0,1.10347701]
[1755826216782,0.40267576,112840.0,112830.0,0.00915125]
[1755826216977,0.40267576,112840.0,112830.0,1.09392576]
[1755826217173,0.40267576,112840.0,112830.0,1.10289264]
[1755826218785,0.12251,112840.0,112830.0,1.10289264]
[1755826218986,0.40267576,112840.0,112830.0,1.10289264]
[1755826219589,0.37066576,112840.0,112830.0,1.10289264]
[1755826220180,0.40503576,112840.0,112830.0,0.28913264]
[1755826220381,0.68520152,112840.0,112830.0,0.82268688]
[1755826223486,1.04600152,112840.0,112830.0,0.82264688]
[1755826224284,1.04600152,112840.0,112830.0,0.00896688]
[1755826224486,1.04600152,112840.0,112830.0,0.81368]
[1755826225085,1.04600152,112840.0,112820.0,0.37762646]
[1755826225086,0.08199,112830.0,112820.0,0.81368]
[1755826225291,0.72295576,112830.0,112820.0,0.81368]
[1755826225687,0.4804,112830.0,112820.0,0.81368]
[1755826225892,0.76056576,112830.0,112820.0,0.81368]
[1755826226091,0.76056576,112830.0,112820.0,1.09384576]
[1755826226296,0.76064617,112830.0,112820.0,0.81368]
[1755826226587,0.4804,112830.0,112820.0,0.81368]
[1755826226787,0.76064617,112830.0,112820.0,0.81368]
[1755826227190,0.36547617,112830.0,112820.0,0.81368]
[1755826227385,0.36547617,112830.0,112820.0,1.17448]
[1755826227586,0.39984617,112830.0,112820.0,0.81368]
[1755826227786,0.39984617,112830.0,112820.0,1.18323387]
[1755826228188,0.1196,112830.0,112820.0,0.82243387]
[1755826228392,0.1196,112830.0,112820.0,1.18323387]
[1755826228594,0.1196,112830.0,112820.0,0.82243387]
[1755826228789,0.4804,112830.0,112820.0,0.82243387]
[1755826229185,0.76064617,112830.0,112820.0,0.82243387]
[1755826229392,0.76064617,112830.0,112820.0,0.82239387]
[1755826229589,0.76064617,112830.0,112800.0,1.95108]
[1755826229590,0.04762,112810.0,112800.0,1.95108]
[1755826229795,0.39984617,112810.0,112800.0,2.57879573]
[1755826230190,0.39984617,112810.0,112800.0,2.93959573]
[1755826230583,0.39984617,112810.0,112800.0,2.57879573]
[1755826230896,0.39984617,112810.0,112800.0,2.94059573]
[1755826231088,0.1196,112810.0,112800.0,2.94059573]
[1755826231488,0.1196,112810.0,112800.0,2.57979573]
[1755826231689,0.1196,112810.0,112800.0,2.94059573]
[1755826231891,0.1196,112810.0,112800.0,2.58079573]
[1755826232593,0.1196,112810.0,112800.0,2.86192]
[1755826232795,0.1196,112810.0,112800.0,2.94159573]
[1755826232989,0.1196,112810.0,112800.0,2.58079573]
[1755826233395,0.1196,112810.0,112800.0,2.86192]
[1755826233796,0.1196,112810.0,112800.0,2.87091932]
[1755826236105,0.08523,112810.0,112800.0,2.87091932]
[1755826236494,0.08523,112810.0,112800.0,3.15116549]
[1755826237202,0.1196,112810.0,112800.0,2.87091932]
[1755826237597,0.1196,112810.0,112800.0,2.51011932]
[1755826237992,0.1196,112810.0,112800.0,1.69647932]
[1755826238196,0.1196,112810.0,112800.0,2.51015932]
[1755826238604,0.39984617,112810.0,112800.0,2.51015932]
[1755826238803,0.39984617,112810.0,112800.0,2.50915932]
[1755826239202,0.39984617,112810.0,112800.0,2.50815932]
[1755826240005,0.39984617,112810.0,112800.0,1.69447932]
[1755826240304,0.39984617,112810.0,112800.0,2.50819932]
[1755826242802,0.39984617,112810.0,112800.0,1.69447932]
[1755826243004,0.87934617,112810.0,112800.0,2.50815932]
[1755826243903,0.87934617,112810.0,112800.0,2.49916]
[1755826244604,0.82211617,112810.0,112800.0,0.81372]
[1755826244805,0.80736617,112810.0,112800.0,0.81372]
[1755826245006,0.52912,112810.0,112800.0,0.81372]
[1755826245309,0.04762,112790.0,112780.0,0.43081231]
[1755826245513,0.39984617,112790.0,112780.0,0.89285195]
[1755826246804,0.39984617,112790.0,112780.0,0.89385195]
[1755826247206,0.39984617,112790.0,112780.0,0.97338112]
[1755826247409,0.51854617,112790.0,112780.0,0.97338112]
[1755826247811,0.51581617,112790.0,112780.0,0.97338112]
[1755826248112,0.51581617,112790.0,112780.0,0.97438112]
[1755826248515,0.51581617,112790.0,112780.0,0.89385195]
[1755826249515,0.51581617,112790.0,112780.0,0.89285195]
[1755826251114,0.51581617,112790.0,112780.0,0.07913195]
[1755826251322,0.87661617,112790.0,112780.0,0.81376]
[1755826252513,0.87661617,112790.0,112780.0,0.82281929]
[1755826255123,0.87661617,112790.0,112780.0,0.89504498]
[1755826257318,0.87661617,112790.0,112780.0,0.82281929]
[1755826260125,0.87661617,112790.0,112780.0,0.82413929]
[1755826262029,0.51581617,112790.0,112780.0,0.82413929]
[1755826262223,0.87661617,112790.0,112780.0,0.82413929]
[1755826262531,0.87661617,112790.0,112780.0,0.00905929]
[1755826262824,0.80736617,112790.0,112770.0,1.09580617]
[1755826263021,0.11718,112780.0,112770.0,0.81556]
[1755826263221,0.02482,112770.0,112760.0,0.6272]
[1755826263430,0.11718,112770.0,112760.0,1.72324617]
[1755826263929,0.08554,112770.0,112760.0,1.73214954]
[1755826264123,0.11718,112770.0,112760.0,1.73146954]
[1755826264321,0.11718,112770.0,112760.0,0.91554954]
[1755826264519,0.39742617,112770.0,112760.0,0.63530337]
[1755826264716,0.39742617,112770.0,112760.0,1.45146337]
[1755826264921,0.39642617,112770.0,112760.0,1.45146337]
[1755826265232,0.08454,112770.0,112760.0,1.73270954]
[1755826265425,0.03306,112770.0,112760.0,1.45246337]
[1755826265623,0.05339,112770.0,112760.0,1.73270954]
[1755826265930,0.05339,112770.0,112760.0,1.73470954]
[1755826266428,0.05339,112770.0,112760.0,1.45546337]
[1755826266630,0.03206,112770.0,112760.0,1.73570954]
[1755826266929,0.03206,112770.0,112760.0,1.73470954]
[1755826267127,0.05339,112770.0,112760.0,1.45446337]
[1755826267326,0.05339,112770.0,112760.0,1.73270954]
[1755826267625,0.03206,112770.0,112760.0,1.46710954]
[1755826267831,0.03406,112780.0,112770.0,0.00521]
[1755826268026,0.02482,112780.0,112770.0,0.92650234]
[1755826268731,0.04615,112780.0,112770.0,0.64625617]
[1755826269030,0.04815,112780.0,112770.0,0.64625617]
[1755826269226,0.05739,112780.0,112770.0,0.64625617]
[1755826269936,0.05739,112780.0,112770.0,0.28545617]
[1755826270235,0.11918,112780.0,112770.0,0.28545617]
[1755826270437,0.11918,112780.0,112770.0,0.00521]
[1755826270637,0.11918,112780.0,112770.0,0.64625617]
[1755826271137,0.08854,112780.0,112770.0,0.64625617]
[1755826271336,0.07493,112780.0,112770.0,0.64625617]
[1755826273235,0.05839,112780.0,112770.0,0.64625617]
[1755826274734,0.12018,112780.0,112770.0,0.64625617]
[1755826275631,0.07493,112780.0,112770.0,0.64625617]
[1755826278934,0.07493,112780.0,112770.0,0.36601]
[1755826279139,0.12263,112780.0,112770.0,0.64625617]
[1755826279836,0.10906,112780.0,112770.0,0.64625617]
[1755826280036,0.07493,112780.0,112770.0,0.64625617]
[1755826280239,0.05839,112780.0,112770.0,0.64625617]
[1755826280441,0.02782,112780.0,112770.0,0.64625617]
[1755826281543,0.02682,112780.0,112770.0,0.64625617]
[1755826281741,0.02682,112780.0,112770.0,0.36601]
[1755826281940,0.02682,112780.0,112770.0,0.64625617]
[1755826281941,0.0581,112780.0,112770.0,0.64625617]
[1755826282141,0.09223,112780.0,112770.0,0.64625617]
[1755826282346,0.09123,112780.0,112770.0,0.64625617]
[1755826282740,0.12014,112780.0,112770.0,0.64625617]
[1755826285742,0.12014,112780.0,112770.0,0.71003637]
[1755826286342,0.07244,112780.0,112770.0,0.71003637]
[1755826286542,0.02582,112780.0,112770.0,0.79873237]
[1755826286730,0.001,112780.0,112770.0,1.07977854]
[1755826286930,0.14181,112790.0,112780.0,0.0912981]
[1755826287130,0.14181,112790.0,112780.0,1.55134427]
[1755826287538,0.1187,112790.0,112780.0,1.55134427]
[1755826287740,0.1187,112790.0,112780.0,1.62291026]
[1755826288143,0.1187,112790.0,112780.0,1.34266409]
[1755826288345,0.1187,112790.0,112780.0,1.70243943]
[1755826288543,0.1187,112790.0,112780.0,1.62291026]
[1755826289246,0.1207,112790.0,112780.0,1.62291026]
[1755826289841,0.14381,112790.0,112780.0,1.62291026]
[1755826290044,0.14481,112790.0,112780.0,1.64118791]
[1755826290550,0.1217,112790.0,112780.0,1.64118791]
[1755826291846,0.1207,112790.0,112780.0,1.90678791]
[1755826292046,0.1207,112790.0,112780.0,1.98631708]
[1755826292246,0.1207,112790.0,112780.0,1.90678791]
[1755826292847,0.1207,112790.0,112780.0,1.90758791]
[1755826293248,0.1197,112790.0,112780.0,1.90758791]
[1755826293448,0.1197,112790.0,112780.0,1.90858791]
[1755826293948,0.1177,112790.0,112780.0,1.91058791]
[1755826296146,0.1177,112790.0,112780.0,1.09078791]
[1755826296351,0.16275,112790.0,112780.0,1.17026408]
[1755826296550,0.23513,112790.0,112780.0,1.98842428]
[1755826296751,0.23513,112790.0,112780.0,1.89973598]
[1755826297052,0.23513,112790.0,112780.0,1.89981598]
[1755826298056,0.23513,112790.0,112780.0,1.98850428]
[1755826298455,0.23513,112790.0,112780.0,1.89981598]
[1755826298843,0.23513,112790.0,112780.0,1.98850428]
[1755826299149,0.23593,112790.0,112780.0,0.45525364]
[1755826299348,0.23593,112790.0,112780.0,1.55481981]
[1755826299849,0.23513,112790.0,112780.0,1.55481981]
[1755826300243,0.23513,112790.0,112780.0,1.55381981]
[1755826300448,0.23513,112790.0,112780.0,1.55481981]
[1755826300654,0.23513,112790.0,112780.0,1.27457364]
[1755826300849,0.23513,112790.0,112780.0,1.55481981]
[1755826301650,0.23513,112790.0,112780.0,1.27457364]
[1755826301855,0.23513,112790.0,112780.0,1.27257364]
[1755826302154,0.23513,112790.0,112780.0,1.55481981]
[1755826302554,0.23513,112790.0,112780.0,1.55381981]
[1755826302750,0.23513,112790.0,112780.0,1.55281981]
[1755826304560,0.23513,112790.0,112780.0,1.61644192]
[1755826305054,0.23513,112790.0,112780.0,1.55281981]
[1755826305556,0.14081,112790.0,112780.0,1.64150811]
[1755826306354,0.16275,112790.0,112780.0,1.36126194]
[1755826306555,0.16275,112790.0,112780.0,1.64150811]
[1755826306752,0.17209,112790.0,112780.0,1.64150811]
[1755826306954,0.17209,112790.0,112780.0,1.36126194]
[1755826307152,0.17209,112790.0,112780.0,1.72098428]
[1755826307353,0.20559,112790.0,112780.0,1.72098428]
[1755826307655,0.17209,112790.0,112780.0,1.72098428]
[1755826308055,0.14081,112790.0,112780.0,1.72098428]
[1755826308257,0.1177,112790.0,112780.0,1.64150811]
[1755826308956,0.1177,112790.0,112780.0,1.90710811]
[1755826309656,0.1177,112790.0,112780.0,1.98663696]
[1755826309858,0.14246,112790.0,112780.0,1.98663696]
[1755826310464,0.14246,112790.0,112780.0,1.90710811]
[1755826312455,0.14246,112790.0,112780.0,2.05440811]
[1755826312659,0.14246,112790.0,112780.0,1.90710811]
[1755826312856,0.14246,112790.0,112780.0,1.98666044]
[1755826313057,0.1177,112790.0,112780.0,1.98666044]
[1755826313459,0.1177,112790.0,112780.0,1.90710811]
[1755826314361,0.1177,112790.0,112780.0,1.64150811]
[1755826314960,0.1177,112790.0,112780.0,1.75284895]
[1755826318054,0.14246,112790.0,112780.0,1.75284895]
[1755826319362,0.1177,112790.0,112780.0,1.64150811]
[1755826319758,0.14246,112790.0,112780.0,1.75284895]
[1755826320259,0.14246,112790.0,112780.0,0.93352895]
[1755826320465,0.14246,112790.0,112780.0,1.75176895]
[1755826320665,0.14246,112790.0,112780.0,1.64042811]
[1755826320861,0.14246,112790.0,112780.0,1.90602811]
[1755826321260,0.17396,112790.0,112780.0,1.90602811]
[1755826321567,0.23687,112790.0,112780.0,1.90698811]
[1755826321861,0.23687,112790.0,112780.0,1.08878811]
[1755826322165,0.23687,112790.0,112780.0,2.01840895]
[1755826322365,0.23687,112790.0,112780.0,2.01940895]
[1755826322567,0.23687,112790.0,112780.0,1.93064065]
[1755826323065,0.23687,112790.0,112780.0,1.81829981]
[1755826323364,0.23687,112790.0,112780.0,1.81929981]
[1755826323755,0.23687,112790.0,112780.0,1.90798811]
[1755826324565,0.23687,112790.0,112780.0,2.01960895]
[1755826324967,0.23687,112790.0,112780.0,1.90826811]
[1755826325757,0.23687,112790.0,112780.0,1.81957981]
[1755826326770,0.23687,112790.0,112780.0,1.64266811]
[1755826327365,0.15214,112790.0,112780.0,1.64266811]
[1755826327566,0.14246,112790.0,112780.0,1.64266811]
[1755826328467,0.16428,112790.0,112780.0,1.64306811]
[1755826328662,0.17396,112790.0,112780.0,1.64306811]
[1755826329061,0.23687,112790.0,112780.0,1.64306811]
[1755826329466,0.20337,112790.0,112780.0,1.55437981]
[1755826329663,0.23687,112790.0,112780.0,0.53485029]
[1755826329868,0.23687,112790.0,112780.0,1.27385364]
[1755826330068,0.23687,112790.0,112780.0,1.63369746]
[1755826330568,0.23687,112790.0,112780.0,1.55409981]
[1755826331271,0.23687,112790.0,112780.0,1.64278811]
[1755826332167,0.17396,112790.0,112780.0,1.64278811]
[1755826332369,0.14246,112790.0,112780.0,1.64278811]
[1755826333170,0.16428,112790.0,112780.0,1.64278811]
[1755826333372,0.14246,112790.0,112780.0,1.64278811]
[1755826334369,0.14246,112790.0,112780.0,0.82418811]
[1755826334576,0.14246,112790.0,112780.0,1.64294811]
[1755826334872,0.16428,112790.0,112780.0,1.64294811]
[1755826335568,0.14246,112790.0,112780.0,1.64294811]
[1755826337368,0.16428,112790.0,112780.0,1.64294811]
[1755826337574,0.16428,112790.0,112780.0,3.32886811]
[1755826338376,0.17396,112790.0,112780.0,3.32886811]
[1755826338976,0.20716,112790.0,112780.0,3.32886811]
[1755826339177,0.22255,112790.0,112780.0,3.32886811]
[1755826339573,0.23642,112790.0,112780.0,3.32886811]
[1755826339975,0.18935,112790.0,112780.0,3.32886811]
[1755826340878,0.15214,112790.0,112780.0,3.32886811]
[1755826341677,0.17473,112790.0,112780.0,3.32886811]
[1755826342572,0.20793,112790.0,112780.0,2.95993364]
[1755826342776,0.23719,112790.0,112780.0,3.03959272]
[1755826342978,0.23719,112790.0,112780.0,3.31983889]
[1755826344073,0.23719,112790.0,112780.0,3.31991889]
[1755826344876,0.23719,112790.0,112780.0,3.31791889]
[1755826345079,0.23719,112790.0,112780.0,3.31891889]
[1755826345679,0.23719,112790.0,112780.0,3.03867272]
[1755826345877,0.23719,112790.0,112780.0,3.31891889]
[1755826348178,0.23719,112790.0,112780.0,3.31791889]
[1755826348479,0.23719,112790.0,112780.0,3.31691889]
[1755826351981,0.23719,112790.0,112780.0,3.31791889]
[1755826352577,0.23719,112790.0,112780.0,3.23825981]
[1755826352778,0.23719,112790.0,112780.0,3.23925981]
[1755826353976,0.23719,112790.0,112780.0,3.23825981]
[1755826354385,0.23719,112790.0,112780.0,3.23725981]
[1755826354878,0.23719,112790.0,112780.0,3.32594811]
[1755826355283,0.23719,112790.0,112780.0,3.23725981]
[1755826356287,0.23719,112790.0,112780.0,3.50285981]
[1755826356784,0.23719,112790.0,112780.0,2.68401981]
[1755826356989,0.23719,112790.0,112780.0,3.50217981]
[1755826359885,0.23719,112790.0,112780.0,3.50193981]
[1755826360392,0.23719,112790.0,112780.0,2.40377364]
[1755826360687,0.51823617,112790.0,112780.0,3.03600931]
[1755826360893,0.51823617,112790.0,112780.0,2.67520931]
[1755826361391,0.51823617,112790.0,112780.0,0.98928931]
[1755826361885,0.51823617,112790.0,112780.0,0.98767931]
[1755826362080,0.51823617,112790.0,112780.0,0.91611332]
[1755826362288,0.51823617,112790.0,112780.0,0.83639765]
[1755826362691,0.07066,112780.0,112770.0,0.44051567]
[1755826363000,0.39834617,112780.0,112770.0,0.07971567]
[1755826363298,0.39834617,112780.0,112770.0,0.8821191]
[1755826363695,0.2358,112780.0,112770.0,0.8821191]
[1755826364402,0.2358,112780.0,112770.0,1.16236527]
[1755826365504,0.2378,112780.0,112770.0,1.16236527]
[1755826365801,0.2388,112780.0,112770.0,1.16236527]
[1755826366302,0.2388,112780.0,112770.0,1.09860617]
[1755826366799,0.2056,112780.0,112770.0,1.09860617]
[1755826367102,0.19173,112780.0,112770.0,1.09860617]
[1755826367297,0.19173,112780.0,112770.0,1.18730227]
[1755826367699,0.19173,112780.0,112770.0,1.09860617]
[1755826367898,0.19173,112780.0,112770.0,1.16236527]
[1755826368100,0.19173,112780.0,112770.0,1.09860617]
[1755826368495,0.19173,112780.0,112770.0,1.16224798]
[1755826368695,0.22457,112780.0,112770.0,1.16224798]
[1755826369098,0.23949,112780.0,112770.0,0.88200181]
[1755826369296,0.23949,112780.0,112770.0,1.16224798]
[1755826374501,0.23949,112780.0,112770.0,0.88200181]
[1755826375605,0.51973617,112780.0,112770.0,0.88200181]
[1755826375800,0.51973617,112780.0,112770.0,0.06364181]
[1755826376104,0.88053617,112780.0,112770.0,0.88296181]
[1755826378405,0.88053617,112780.0,112770.0,0.81932]
[1755826379410,0.51973617,112780.0,112770.0,0.81932]
[1755826379606,0.51973617,112780.0,112770.0,0.88296181]
[1755826380002,0.23949,112780.0,112770.0,1.16320798]
[1755826380712,0.14429,112780.0,112770.0,1.16320798]
[1755826381212,0.14429,112780.0,112770.0,1.61270358]
[1755826381405,0.14429,112780.0,112770.0,1.54906177]
[1755826381802,0.14429,112780.0,112770.0,1.46036617]
[1755826382109,0.14429,112780.0,112770.0,1.54906177]
[1755826382304,0.1207,112780.0,112770.0,1.83010794]
[1755826382504,0.1207,112780.0,112770.0,1.90982361]
[1755826383409,0.1187,112780.0,112770.0,1.90982361]
[1755826384408,0.1177,112780.0,112770.0,1.90982361]
[1755826384713,0.1177,112780.0,112770.0,1.90963563]
[1755826385115,0.1197,112780.0,112770.0,1.90963563]
[1755826385514,0.1207,112780.0,112770.0,1.90963563]
[1755826385913,0.1207,112780.0,112770.0,2.17523563]
[1755826387314,0.16702,112780.0,112770.0,2.17443563]
[1755826387615,0.14396,112780.0,112770.0,2.17443563]
[1755826387909,0.1207,112780.0,112770.0,2.1935016]
[1755826388106,0.1207,112780.0,112770.0,2.11394637]
[1755826388305,0.14376,112780.0,112770.0,0.64463843]
[1755826388508,0.23934,112780.0,112770.0,0.45858911]
[1755826388721,0.23934,112780.0,112770.0,1.2672591]
[1755826388919,0.23934,112780.0,112770.0,1.2036]
[1755826389218,0.23934,112780.0,112770.0,1.28315068]
[1755826389516,0.23934,112780.0,112770.0,1.2036]
[1755826390111,0.23934,112780.0,112770.0,1.28315068]
[1755826392524,0.52038617,112780.0,112770.0,1.2036]
[1755826392711,0.52038617,112780.0,112770.0,0.8428]
[1755826392911,0.52038617,112780.0,112770.0,0.90583033]
[1755826394119,0.24014,112780.0,112770.0,0.90583033]
[1755826394320,0.52038617,112780.0,112770.0,0.90583033]
[1755826396020,0.61618617,112780.0,112770.0,0.90583033]
[1755826397324,0.33594,112780.0,112770.0,0.90583033]
[1755826397815,0.61538617,112780.0,112770.0,0.90583033]
[1755826398014,0.33514,112780.0,112770.0,0.90583033]
[1755826398823,0.23934,112780.0,112770.0,0.90583033]
[1755826401227,0.51958617,112780.0,112770.0,0.90583033]
[1755826401728,0.23934,112780.0,112770.0,0.90583033]
[1755826402228,0.23934,112780.0,112770.0,1.26663033]
[1755826403217,0.23934,112780.0,112770.0,0.90583033]
[1755826406025,0.51958617,112780.0,112770.0,0.90583033]
[1755826407030,0.48674617,112780.0,112770.0,0.90583033]
[1755826407332,0.2065,112780.0,112770.0,1.1860765]
[1755826407524,0.23934,112780.0,112770.0,0.90583033]
[1755826407829,0.23934,112780.0,112770.0,1.1860765]
[1755826408828,0.23934,112780.0,112770.0,0.90583033]
[1755826409033,0.23934,112780.0,112770.0,1.1860765]
[1755826409533,0.23934,112780.0,112770.0,0.90583033]
[1755826410234,0.23634,112780.0,112770.0,0.90583033]
[1755826410430,0.23734,112780.0,112770.0,0.90583033]
[1755826411123,0.23834,112780.0,112770.0,0.90583033]
[1755826411933,0.23734,112780.0,112770.0,0.90583033]
[1755826412133,0.23934,112780.0,112770.0,0.90583033]
[1755826414037,0.23934,112780.0,112770.0,1.1860765]
[1755826414038,0.14396,112780.0,112770.0,1.1860765]
[1755826414838,0.16687,112780.0,112770.0,1.1860765]
[1755826415730,0.16587,112780.0,112770.0,1.1860765]
[1755826416428,0.17495,112780.0,112770.0,1.1860765]
[1755826416636,0.17595,112780.0,112770.0,1.1860765]
[1755826417335,0.17595,112780.0,112770.0,1.12236617]
[1755826417637,0.22527,112780.0,112770.0,1.12236617]
[1755826417842,0.24013,112780.0,112770.0,1.12236617]
[1755826420242,0.24013,112780.0,112770.0,0.84212]
[1755826420429,0.24013,112780.0,112770.0,1.12236617]
[1755826422832,0.24013,112780.0,112770.0,1.20191685]
[1755826423139,0.24013,112780.0,112770.0,1.12236617]
[1755826423741,0.19243,112780.0,112770.0,1.12236617]
[1755826425839,0.20729,112780.0,112770.0,1.12236617]
[1755826426137,0.24013,112780.0,112770.0,1.12236617]
[1755826427131,0.24013,112780.0,112770.0,0.84212]
[1755826427437,0.24013,112780.0,112770.0,1.12236617]
[1755826428043,0.24013,112780.0,112770.0,1.20191685]
[1755826430642,0.14396,112780.0,112770.0,1.20191685]
[1755826430842,0.176,112780.0,112770.0,1.20191685]
[1755826431042,0.20813,112780.0,112770.0,1.20191685]
[1755826431343,0.23778,112780.0,112770.0,1.20191685]
[1755826431842,0.14396,112780.0,112770.0,1.84296302]
[1755826432048,0.1207,112780.0,112770.0,1.93165782]
[1755826432345,0.1207,112780.0,112770.0,1.85210714]
[1755826433049,0.1207,112780.0,112770.0,1.93181117]
[1755826433238,0.1207,112780.0,112770.0,1.85210714]
[1755826433437,0.1207,112780.0,112770.0,1.93179301]
[1755826434051,0.1207,112780.0,112770.0,1.37130067]
[1755826434243,0.1207,112780.0,112770.0,1.93179301]
[1755826434845,0.1197,112780.0,112770.0,1.93179301]
[1755826435043,0.1197,112780.0,112770.0,1.28260587]
[1755826435353,0.1429,112780.0,112770.0,1.84309821]
[1755826436049,0.1429,112780.0,112770.0,1.93179311]
[1755826436754,0.1409,112780.0,112770.0,1.93179311]
[1755826437045,0.1187,112780.0,112770.0,1.93179311]
[1755826438149,0.1419,112780.0,112770.0,1.93179311]
[1755826440555,0.1187,112780.0,112770.0,1.93179311]
[1755826441151,0.1187,112780.0,112770.0,1.85210724]
[1755826441851,0.1177,112780.0,112770.0,1.85210724]
[1755826442150,0.1177,112780.0,112770.0,2.11770724]
[1755826443954,0.1409,112780.0,112770.0,2.11770754]
[1755826444244,0.1409,112780.0,112770.0,1.83746137]
[1755826444446,0.1409,112780.0,112770.0,2.11770754]
[1755826444652,0.1409,112780.0,112770.0,2.19725612]
[1755826445347,0.1177,112780.0,112770.0,2.19725612]
[1755826448563,0.1177,112780.0,112770.0,2.21494609]
[1755826449652,0.1177,112780.0,112770.0,2.13539751]
[1755826451857,0.05397537,112780.0,112770.0,2.13539751]
[1755826452051,0.05397537,112780.0,112770.0,2.24673835]
[1755826454361,0.05397537,112780.0,112770.0,2.24873835]
[1755826454555,0.05397537,112780.0,112770.0,2.24973835]
[1755826458874,0.05397537,112780.0,112770.0,2.13839751]
[1755826460271,0.26812,112790.0,112770.0,2.31578251]
[1755826460571,0.26812,112790.0,112780.0,1.12122639]
[1755826460572,0.24492,112790.0,112780.0,1.12122639]
[1755826460765,0.24492,112790.0,112780.0,1.35163933]
[1755826461165,0.12516043,112790.0,112780.0,1.35163933]
[1755826461975,0.14997043,112790.0,112780.0,1.35163933]
[1755826462972,0.14997043,112790.0,112780.0,1.4217013]
[1755826463172,0.14997043,112790.0,112780.0,1.14145513]
[1755826463376,0.14997043,112790.0,112780.0,1.4217013]
[1755826463679,0.14997043,112790.0,112780.0,1.31045465]
[1755826464070,0.14997043,112790.0,112780.0,1.03020848]
[1755826464273,0.17248043,112790.0,112780.0,1.03020848]
[1755826465878,0.14997043,112790.0,112780.0,1.57605465]
[1755826467275,0.14997043,112790.0,112780.0,1.29580848]
[1755826467480,0.21170043,112790.0,112780.0,1.29580848]
[1755826467675,0.24637043,112790.0,112780.0,1.29580848]